bitfinex/quotes_ETHUSD_20250430
["timestamp","ask_amount","ask_price","bid_price","bid_amount"]
[1746032967922,0.53004267,1767.7,1767.6,4.836]
[1746032968122,0.84806923,1767.7,1767.6,4.836]
[1746032970801,6.50513773,1767.7,1767.6,4.836]
[1746032971333,0.84806923,1767.7,1767.6,4.836]
[1746032972790,6.50513773,1767.7,1767.6,4.836]
[1746032972992,0.84806923,1767.7,1767.6,4.836]
[1746032973332,6.50513773,1767.7,1767.6,4.836]
[1746032974734,0.84806923,1767.7,1767.6,4.836]
[1746032977740,0.84806923,1767.7,1767.6,10.49338854]
[1746032977946,0.84806923,1767.7,1767.6,4.836]
[1746032978839,0.84806923,1767.7,1767.6,10.49338854]
[1746032979739,0.84806923,1767.7,1767.6,10.6330408]
[1746032981253,0.84806923,1767.7,1767.6,4.97565226]
[1746032982314,0.84806923,1767.7,1767.6,10.6330408]
[1746032987019,0.84806923,1767.7,1767.6,11.4176408]
[1746032989850,0.84806923,1767.7,1767.6,13.4176408]
[1746032994376,0.84806923,1767.7,1767.6,11.4176408]
[1746032996278,0.84806923,1767.7,1767.6,10.6330408]
[1746033000585,0.84806923,1767.7,1767.6,4.97565226]
[1746033000881,6.50513773,1767.7,1767.6,0.13965226]
[1746033001078,2.97188176,1767.7,1767.6,0.13965226]
[1746033001248,2.97188176,1767.7,1767.5,4.79]
[1746033001575,2.44183909,1767.7,1767.6,0.13459719]
[1746033002291,2.97222094,1767.7,1767.6,0.13459719]
[1746033003138,11.62928944,1767.7,1767.6,0.13459719]
[1746033003684,21.08517675,1767.7,1767.6,0.13459719]
[1746033003873,5.65866908,1767.2,1767.1,18.692]
[1746033004078,5.6589893,1767.1,1767.0,4.79]
[1746033004258,6.18937115,1767.1,1767.0,4.79]
[1746033004589,9.50739771,1767.1,1767.0,4.79]
[1746033004746,10.29809771,1767.1,1767.0,4.79]
[1746033005382,11.89379711,1767.1,1766.8,0.4029331]
[1746033005584,17.55309396,1767.1,1766.8,0.4029331]
[1746033005748,0.84840841,1767.0,1766.8,0.4029331]
[1746033006148,0.53038185,1766.9,1766.8,0.4029331]
[1746033006656,0.84840841,1766.9,1766.8,0.4029331]
[1746033007191,0.84840841,1766.9,1766.8,6.06288329]
[1746033009089,0.53038185,1766.9,1766.8,6.06288329]
[1746033009860,0.53038185,1766.9,1766.8,6.18964331]
[1746033010070,0.7907,1767.1,1766.9,5.65947587]
[1746033010589,0.84512694,1767.0,1766.8,11.7224702]
[1746033010789,0.31695219,1767.0,1766.9,5.65962986]
[1746033011485,0.31695219,1767.0,1766.8,0.4029331]
[1746033011683,0.31695219,1767.0,1766.9,5.65962986]
[1746033011890,3.0,1766.9,1766.8,0.4029331]
[1746033012048,0.52810876,1766.9,1766.8,0.4029331]
[1746033012454,0.84487257,1766.9,1766.8,0.4029331]
[1746033012893,3.84487257,1766.9,1766.8,0.4029331]
[1746033014193,9.50450243,1766.9,1766.8,0.4029331]
[1746033014414,3.84487257,1766.9,1766.8,0.4029331]
[1746033016265,0.84487257,1766.9,1766.8,6.06288329]
[1746033016960,0.31676381,1766.9,1766.8,0.4029331]
[1746033017374,0.52755425,1767.0,1766.8,0.4029331]
[1746033017780,0.52755425,1767.0,1766.8,6.06273292]
[1746033017986,3.0,1767.1,1766.8,6.06270285]
[1746033018183,0.7774,1767.2,1766.9,5.65951977]
[1746033018386,0.31652233,1767.1,1767.0,5.65920772]
[1746033018658,0.31652233,1767.1,1766.9,5.65951977]
[1746033018883,0.31652233,1767.1,1766.8,6.06269292]
[1746033018884,0.31652233,1767.1,1766.8,6.06267454]
[1746033019080,5.97554471,1767.1,1766.8,6.06267454]
[1746033019285,5.65902238,1767.1,1766.8,6.06267454]
[1746033019507,0.52767917,1767.0,1766.8,6.06267454]
[1746033020071,5.65913801,1767.1,1766.8,0.4029331]
[1746033020272,0.7768,1767.0,1766.8,0.4029331]
[1746033020771,0.31666728,1766.9,1766.8,0.4029331]
[1746033021306,0.84444472,1766.9,1766.8,0.4029331]
[1746033022593,0.84444472,1766.9,1766.8,6.06288329]
[1746033022982,0.84444472,1766.9,1766.8,0.4029331]
[1746033023180,0.84444472,1766.9,1766.8,6.06288329]
[1746033024806,0.84444472,1766.9,1766.8,6.19572845]
[1746033024975,0.84444472,1766.9,1766.8,0.53577826]
[1746033026507,0.84444472,1766.9,1766.8,6.19572845]
[1746033026894,0.84444472,1766.9,1766.8,0.53577826]
[1746033029806,6.50407458,1766.9,1766.8,0.53577826]
[1746033030024,2.13847159,1766.9,1766.8,0.53577826]
[1746033031238,2.13847159,1766.9,1766.8,0.6793844]
[1746033033816,7.79810145,1766.9,1766.8,0.6793844]
[1746033034015,11.6733518,1766.9,1766.8,0.6793844]
[1746033034188,11.60260145,1766.9,1766.8,0.6793844]
[1746033034389,14.96848876,1766.9,1766.8,0.6793844]
[1746033038807,14.96848876,1766.9,1766.8,0.4029331]
[1746033038996,14.96848876,1766.9,1766.8,0.65812179]
[1746033039823,21.05848876,1766.9,1766.8,0.65812179]
[1746033040329,21.05848876,1766.9,1766.8,0.4029331]
[1746033041596,21.60848876,1766.9,1766.8,0.4029331]
[1746033043233,24.97437607,1766.9,1766.8,0.4029331]
[1746033043430,9.46843188,1766.4,1766.3,4.768]
[1746033043615,5.66189773,1766.2,1766.0,24.2849]
[1746033043819,0.52777744,1766.1,1766.0,5.5759]
[1746033044419,0.84444472,1766.1,1766.0,5.5759]
[1746033046021,0.84444472,1766.1,1766.0,4.768]
[1746033046831,6.50663825,1766.1,1766.0,4.768]
[1746033047012,7.8057897,1766.1,1766.0,4.768]
[1746033047529,2.14359617,1766.1,1766.0,4.768]
[1746033047735,0.84444472,1766.1,1766.0,4.768]
[1746033049332,6.50663825,1766.1,1766.0,4.768]
[1746033049633,0.84444472,1766.1,1766.0,4.768]
[1746033052111,0.84444472,1766.1,1765.5,5.66384458]
[1746033052112,5.6636636,1765.7,1765.5,4.769]
[1746033052312,0.56636636,1765.7,1765.5,4.769]
[1746033052511,11.32613515,1765.9,1765.5,10.43289927]
[1746033052925,11.32610102,1765.9,1765.5,10.43289927]
[1746033053235,0.84567558,1765.8,1765.5,4.769]
[1746033053435,0.84567558,1765.8,1765.5,10.43287982]
[1746033053778,0.52854729,1765.7,1765.5,10.43287982]
[1746033054239,0.52854729,1765.6,1765.5,10.43287982]
[1746033054459,0.52854729,1765.6,1765.5,11.25481567]
[1746033054606,0.52854729,1765.6,1765.5,11.19817982]
[1746033054936,3.0,1766.0,1765.8,6.42844021]
[1746033055304,0.31698278,1765.9,1765.8,6.42844021]
[1746033055506,0.84525698,1765.9,1765.8,6.4850675]
[1746033055735,0.84525698,1765.9,1765.8,6.42844021]
[1746033055925,0.5282742,1765.9,1765.8,6.42844021]
[1746033056655,0.5282742,1765.9,1765.8,6.42845551]
[1746033057666,0.84535828,1765.9,1765.8,6.42845551]
[1746033058250,0.5282742,1765.9,1765.8,6.42845551]
[1746033060065,0.84549654,1765.9,1765.8,6.42845551]
[1746033060541,0.84549654,1765.9,1765.8,0.7653]
[1746033060927,0.84549654,1765.9,1765.7,5.66325956]
[1746033061428,0.5282742,1765.8,1765.7,5.66325956]
[1746033062330,8.66191463,1766.2,1765.7,5.66325956]
[1746033062331,0.5282742,1766.1,1765.8,5.66302997]
[1746033062561,7.10965167,1766.1,1765.8,5.66302997]
[1746033062860,0.5282742,1766.0,1765.7,5.66325956]
[1746033063361,0.84579111,1765.9,1765.7,5.66325956]
[1746033063567,0.84579111,1765.9,1765.8,5.66315551]
[1746033064133,0.84579111,1765.9,1765.8,6.46975551]
[1746033065042,0.5282742,1765.9,1765.8,6.46975551]
[1746033067052,0.84616549,1765.9,1765.8,6.46975551]
[1746033069543,0.84616549,1765.9,1765.8,5.66315551]
[1746033069882,0.84616549,1765.9,1765.8,5.90747735]
[1746033071186,0.84616549,1765.9,1765.8,0.24432184]
[1746033071684,0.84616549,1765.9,1765.8,5.90747735]
[1746033073075,0.84616549,1765.9,1765.8,0.24432184]
[1746033073475,0.84616549,1765.9,1765.8,5.90747735]
[1746033073790,0.84616549,1765.9,1765.8,0.24432184]
[1746033073983,0.84616549,1765.9,1765.8,5.90747735]
[1746033076085,0.84616549,1765.9,1765.8,0.24432184]
[1746033076895,0.84616549,1765.9,1765.8,5.90747735]
[1746033078766,0.84616549,1765.9,1765.8,0.24432184]
[1746033079087,0.84616549,1765.9,1765.8,5.90747735]
[1746033080561,0.84616549,1765.9,1765.8,5.90747735]
[1746033086264,0.84616549,1765.9,1765.8,6.71637735]
[1746033086466,0.84616549,1765.9,1765.8,6.77299897]
[1746033087166,0.84616549,1765.9,1765.8,6.71637735]
[1746033087781,0.5282742,1765.9,1765.8,6.71637735]
[1746033088491,0.5282742,1765.9,1765.8,6.77299713]
[1746033088698,0.5282742,1765.9,1765.8,6.71637735]
[1746033089361,0.84684085,1765.9,1765.8,6.71637735]
[1746033092575,0.84684085,1765.9,1765.8,8.71637735]
[1746033095996,0.84684085,1765.9,1765.8,6.71637735]
[1746033096584,0.84684085,1765.9,1765.8,5.90747735]
[1746033099323,0.84684085,1765.9,1765.8,6.68467735]
[1746033100215,0.5282742,1765.9,1765.8,6.68467735]
[1746033101534,0.5282742,1765.9,1765.8,6.74129561]
[1746033102016,3.8119,1766.4,1766.2,11.32326204]
[1746033102219,0.31829079,1766.3,1766.2,5.66163102]
[1746033102433,0.84877495,1766.3,1766.2,5.66163102]
[1746033105927,0.84877495,1766.3,1766.1,10.4280439]
[1746033106110,1.88097038,1766.3,1766.1,16.09001756]
[1746033106308,0.31829079,1766.3,1766.2,5.66187294]
[1746033106934,0.84876488,1766.3,1766.2,5.66187294]
[1746033108894,0.31829079,1766.3,1766.2,5.66187294]
[1746033109099,3.8119,1766.4,1766.2,5.66187294]
[1746033109529,0.84882126,1766.3,1766.2,5.66187294]
[1746033114919,0.84882126,1766.3,1766.2,5.89929123]
[1746033115937,0.84882126,1766.3,1766.2,0.23741829]
[1746033116148,1.23370339,1766.3,1766.2,5.66187294]
[1746033116321,0.84882126,1766.3,1766.2,5.89929123]
[1746033116805,0.84882126,1766.3,1766.2,0.23741829]
[1746033117011,0.84882126,1766.3,1766.2,5.89929123]
[1746033118011,0.84882126,1766.3,1766.2,6.69759123]
[1746033120423,0.84882126,1766.3,1766.2,5.89929123]
[1746033122010,0.84882126,1766.3,1766.2,0.23741829]
[1746033122748,0.84882126,1766.3,1766.1,10.42797284]
[1746033123065,0.53051396,1766.3,1766.2,0.23741829]
[1746033123357,5.66220553,1766.1,1765.8,5.66309138]
[1746033123510,0.822,1766.1,1766.0,4.766]
[1746033123717,7.01470749,1766.1,1766.0,4.766]
[1746033124140,7.33337917,1766.1,1766.0,4.766]
[1746033124345,8.93292649,1766.1,1766.0,4.766]
[1746033127548,3.27073296,1766.1,1766.0,4.766]
[1746033128614,8.93292649,1766.1,1766.0,4.766]
[1746033129946,8.93292649,1766.1,1766.0,5.0037788]
[1746033131146,11.93382649,1766.1,1766.0,0.2377788]
[1746033131446,5.66285734,1765.9,1765.7,4.764]
[1746033131650,0.7679,1765.7,1765.6,23.479]
[1746033131953,0.7679,1765.7,1765.6,4.764]
[1746033132244,6.43137624,1765.7,1765.6,4.764]
[1746033132450,7.28056188,1765.7,1765.6,4.764]
[1746033132655,8.57494656,1765.7,1765.6,4.764]
[1746033132866,11.6457437,1765.7,1765.6,4.764]
[1746033133160,11.57494656,1765.7,1765.6,4.764]
[1746033133870,0.8045,1765.4,1765.3,4.764]
[1746033134445,1.33501396,1765.4,1765.3,4.764]
[1746033134756,2.03493567,1765.4,1765.3,4.764]
[1746033134960,2.35360735,1765.4,1765.3,4.764]
[1746033135835,0.84918564,1765.4,1765.3,4.764]
[1746033137170,0.84918564,1765.4,1765.3,10.42875953]
[1746033137528,0.84918564,1765.4,1765.3,4.764]
[1746033144845,0.84918564,1765.4,1765.3,4.98388207]
[1746033146187,0.84918564,1765.4,1765.3,0.21988207]
[1746033146394,7.54545789,1765.4,1765.3,0.21988207]
[1746033146573,7.54545789,1765.4,1765.1,5.66534591]
[1746033146778,1.88101924,1765.4,1765.3,0.22348157]
[1746033147154,1.88101924,1765.4,1765.1,5.66518493]
[1746033147357,1.88101924,1765.4,1765.3,0.22348157]
[1746033147670,1.88101924,1765.4,1765.1,5.66517459]
[1746033147872,1.88101924,1765.4,1765.3,0.2273812]
[1746033148365,1.88101924,1765.4,1765.1,11.33036617]
[1746033148565,0.84918564,1765.4,1765.3,0.2273812]
[1746033148766,0.84918564,1765.4,1765.1,5.66517459]
[1746033148966,0.84918564,1765.4,1765.3,0.2273812]
[1746033149168,0.31867168,1765.4,1765.1,5.66517459]
[1746033149368,0.31867168,1765.4,1765.3,0.2273812]
[1746033149600,1.29745389,1765.4,1765.1,11.33035748]
[1746033149799,0.31867168,1765.4,1765.3,5.66475953]
[1746033150192,0.31867168,1765.4,1765.3,5.88952142]
[1746033150392,0.31867168,1765.4,1765.3,10.65552142]
[1746033150699,0.8475173,1765.4,1765.3,4.99076189]
[1746033152280,0.8475173,1765.4,1765.3,10.65552142]
[1746033153002,0.8475173,1765.4,1765.3,4.99076189]
[1746033153411,0.8475173,1765.4,1765.3,10.65552142]
[1746033154290,0.8475173,1765.4,1765.3,4.99076189]
[1746033154498,0.8475173,1765.4,1765.3,10.65552142]
[1746033154871,0.8475173,1765.4,1765.3,4.99076189]
[1746033157408,1.31374903,1765.4,1765.3,4.99076189]
[1746033157577,0.8475173,1765.4,1765.3,4.99076189]
[1746033160413,0.8475173,1765.4,1765.3,10.65552142]
[1746033160576,0.8475173,1765.4,1765.3,11.52686446]
[1746033160778,0.8475173,1765.4,1765.3,11.47022142]
[1746033174214,0.8475173,1765.4,1765.3,10.65552142]
[1746033183507,0.8475173,1765.4,1765.3,4.99076189]
[1746033185041,0.8475173,1765.4,1765.3,10.65552142]
[1746033186434,0.8475173,1765.4,1765.3,4.99076189]
[1746033186603,6.51195595,1765.4,1765.3,4.99076189]
[1746033186805,0.8475173,1765.4,1765.3,4.99076189]
[1746033187103,1.87486106,1765.4,1765.3,4.99076189]
[1746033190815,11.34909971,1765.4,1765.3,0.22476189]
[1746033191017,10.53929971,1765.4,1765.0,10.82756084]
[1746033191217,10.52861577,1765.3,1765.1,0.21859227]
[1746033191422,11.05746139,1765.3,1765.1,0.21859227]
[1746033191622,0.31867168,1765.2,1765.1,0.21859227]
[1746033192029,0.8475173,1765.2,1765.1,0.21859227]
[1746033193019,0.847386,1765.2,1765.1,0.21859227]
[1746033193347,0.84944076,1765.2,1765.1,0.21859227]
[1746033193536,1.98724641,1765.2,1765.1,0.21859227]
[1746033194537,1.98720855,1765.2,1765.1,0.21859227]
[1746033194732,7.65228899,1765.2,1765.1,0.21859227]
[1746033194936,8.41388899,1765.2,1765.1,0.21859227]
[1746033195243,8.09534861,1765.2,1765.1,0.21859227]
[1746033195417,8.41379794,1765.2,1765.1,0.21859227]
[1746033195919,2.74872943,1765.2,1765.1,0.21859227]
[1746033196119,0.84932378,1765.2,1765.1,5.88399366]
[1746033196343,0.84931053,1765.2,1765.1,5.88399366]
[1746033197825,0.84931053,1765.2,1765.1,6.71479366]
[1746033199433,0.84931053,1765.2,1765.1,6.77143843]
[1746033199746,0.84931053,1765.2,1765.1,6.71479366]
[1746033199946,0.84931053,1765.2,1765.1,6.77143527]
[1746033200255,0.84931053,1765.2,1765.1,6.71479366]
[1746033200852,0.53081257,1765.2,1765.1,11.47479366]
[1746033202060,0.53081257,1765.2,1765.1,13.47479366]
[1746033205056,3.7976,1765.8,1765.5,5.66395157]
[1746033205255,3.7976,1765.8,1765.6,0.22003269]
[1746033205627,0.84897886,1765.7,1765.6,0.22003269]
[1746033207161,0.84897886,1765.7,1765.6,5.88382969]
[1746033207646,0.84897886,1765.7,1765.6,0.22003269]
[1746033208073,0.84897886,1765.7,1765.6,6.72056536]
[1746033209354,0.84897886,1765.7,1765.6,8.72056536]
[1746033209570,0.53061153,1765.7,1765.6,8.66392969]
[1746033209751,0.53061153,1765.7,1765.6,8.72055616]
[1746033210146,0.53061153,1765.7,1765.6,10.64282969]
[1746033211074,0.53061153,1765.7,1765.6,11.66339832]
[1746033211279,0.53061153,1765.7,1765.6,11.43992969]
[1746033211778,0.53061153,1765.7,1765.6,13.43992969]
[1746033213372,0.53061153,1765.7,1765.6,11.43992969]
[1746033213583,0.8483269,1765.7,1765.6,11.43992969]
[1746033214281,0.53061153,1765.7,1765.6,11.43992969]
[1746033224993,0.84843649,1765.7,1765.6,11.43992969]
[1746033226797,1.60063649,1765.7,1765.6,10.64282969]
[1746033227290,0.84843649,1765.7,1765.6,10.64282969]
[1746033227493,0.84843649,1765.7,1765.6,5.88382969]
[1746033227693,0.84843649,1765.7,1765.6,10.63882969]
[1746033228293,1.67053649,1765.7,1765.6,10.63882969]
[1746033228592,1.67053649,1765.7,1765.6,4.97503269]
[1746033228792,2.4039104,1765.7,1765.6,4.97503269]
[1746033228964,1.67053649,1765.7,1765.6,4.97503269]
[1746033229472,10.29881273,1765.7,1765.6,4.97503269]
[1746033230558,4.63533649,1765.7,1765.6,4.97503269]
[1746033235996,4.63533649,1765.7,1765.6,10.63882969]
[1746033236197,1.63533649,1765.7,1765.6,10.63882969]
[1746033237683,0.84843649,1765.7,1765.6,11.65939832]
[1746033238016,0.84843649,1765.7,1765.6,4.97503269]
[1746033238223,0.84843649,1765.7,1765.6,10.63882969]
[1746033238372,0.84843649,1765.7,1765.6,11.52226345]
[1746033238570,0.84843649,1765.7,1765.6,13.46562969]
[1746033238793,0.84829178,1765.7,1765.6,13.46562969]
[1746033242002,0.84829178,1765.7,1765.6,10.63882969]
[1746033245420,0.8483014,1765.7,1765.6,10.63882969]
[1746033248115,0.8483014,1765.7,1765.6,10.69546081]
[1746033248281,0.8483014,1765.7,1765.6,11.39002969]
[1746033248902,0.8483014,1765.7,1765.6,13.39002969]
[1746033249108,0.7557,1766.5,1766.0,5.66251415]
[1746033249294,0.7557,1766.5,1766.2,5.66166246]
[1746033249499,0.7557,1766.5,1766.3,0.21439259]
[1746033249807,6.41662589,1766.5,1766.3,0.21439259]
[1746033250421,6.41662589,1766.5,1766.1,10.41701859]
[1746033250590,6.41662589,1766.5,1766.2,0.20941515]
[1746033250789,7.92436599,1766.5,1766.2,5.66177764]
[1746033250983,5.2634401,1766.5,1766.3,0.20941515]
[1746033252018,10.92436992,1766.5,1766.3,0.20941515]
[1746033252624,5.2634401,1766.5,1766.3,0.20941515]
[1746033252821,0.7557,1766.4,1766.3,0.20941515]
[1746033253126,0.7557,1766.4,1766.1,10.41709056]
[1746033253720,0.7557,1766.4,1766.2,0.20941515]
[1746033254095,0.7557,1766.4,1766.1,16.07897187]
[1746033254298,0.7557,1766.4,1766.2,0.20941515]
[1746033254499,0.7557,1766.4,1766.2,5.66185012]
[1746033254719,0.7557,1766.4,1766.3,0.20941515]
[1746033255594,0.7557,1766.4,1766.3,5.87096754]
[1746033256246,0.7557,1766.4,1766.3,0.20941515]
[1746033256571,0.7557,1766.4,1766.3,5.87096754]
[1746033257522,0.7557,1766.4,1766.3,0.20941515]
[1746033257928,9.60290569,1766.4,1766.3,0.20941515]
[1746033258131,10.41160569,1766.4,1766.3,0.20941515]
[1746033258335,0.8087,1766.1,1766.0,4.752]
[1746033259809,0.8087,1766.1,1766.0,10.41451415]
[1746033260044,3.817,1766.2,1766.0,10.41451415]
[1746033261155,3.817,1766.2,1766.0,4.752]
[1746033261358,3.817,1766.2,1766.0,10.41450795]
[1746033263256,3.817,1766.2,1766.0,10.41432362]
[1746033263754,0.31792099,1766.1,1766.0,10.41432362]
[1746033263959,0.84779011,1766.1,1766.0,10.41432362]
[1746033264772,1.46380908,1767.1,1766.3,5.66126431]
[1746033264920,0.7593,1767.1,1766.4,11.16661711]
[1746033265256,3.7593,1766.9,1766.4,5.7159344]
[1746033265434,0.7593,1766.9,1766.4,11.37688753]
[1746033265623,0.7593,1766.9,1766.6,5.66058253]
[1746033265961,3.7593,1766.9,1766.7,5.87041443]
[1746033266162,0.7593,1766.9,1766.7,5.87041443]
[1746033266336,3.7593,1766.9,1766.7,5.87041443]
[1746033270840,3.7593,1766.9,1766.7,5.87031982]
[1746033271879,3.7593,1766.9,1766.7,11.5303581]
[1746033272060,3.7593,1766.9,1766.7,5.8702928]
[1746033272570,3.7593,1766.9,1766.7,11.5303431]
[1746033273068,3.7593,1766.9,1766.8,5.65995019]
[1746033273266,3.7593,1766.9,1766.8,5.86666834]
[1746033273466,3.7593,1766.9,1766.8,0.20671815]
[1746033273663,0.7593,1766.9,1766.8,0.20671815]
[1746033274343,0.7593,1766.9,1766.8,5.86666834]
[1746033274549,3.7652,1767.0,1766.8,5.86666834]
[1746033275372,3.7652,1767.2,1766.9,5.65962986]
[1746033275768,0.7652,1767.2,1767.0,5.86334389]
[1746033275943,0.7652,1767.2,1766.9,5.65948102]
[1746033275944,3.0,1767.1,1766.9,5.65948102]
[1746033276995,6.09,1768.2,1766.9,5.65948102]
[1746033277192,5.65749427,1767.6,1767.0,0.7787]
[1746033277482,0.7652,1767.3,1767.2,5.65844915]
[1746033277843,0.7652,1767.5,1767.3,5.65827951]
[1746033278081,3.7652,1767.5,1767.3,5.65816186]
[1746033278387,0.7652,1767.8,1767.5,5.6575862]
[1746033278553,3.7652,1767.8,1767.5,10.4085862]
[1746033278739,0.7652,1767.8,1767.5,10.40848496]
[1746033278936,0.7652,1767.8,1767.6,5.65718953]
[1746033279182,3.7652,1767.8,1767.7,5.6570685]
[1746033279364,3.0,1767.8,1767.6,5.65718953]
[1746033279568,3.36588731,1767.9,1767.6,11.31435712]
[1746033279970,3.0,1767.8,1767.7,0.19732679]
[1746033280162,3.0,1767.8,1767.7,5.85439529]
[1746033280353,3.0,1767.8,1767.7,0.19732679]
[1746033281585,3.7652,1768.0,1767.7,5.85439529]
[1746033281955,3.7652,1768.0,1767.8,5.656722]
[1746033282154,9.42152769,1768.0,1767.7,0.19732679]
[1746033282360,9.42132008,1768.0,1767.7,5.65688389]
[1746033282679,3.7652,1768.0,1767.8,0.19451258]
[1746033282888,9.42133154,1768.0,1767.8,0.19451258]
[1746033283769,9.42133154,1768.0,1767.6,5.65719093]
[1746033284386,9.42133154,1768.0,1767.7,0.19427315]
[1746033285300,9.42133154,1768.0,1767.7,5.85129764]
[1746033285467,9.42133154,1768.0,1767.7,0.19427315]
[1746033286196,3.0,1767.8,1767.7,0.19427315]
[1746033286382,8.6567485,1767.8,1767.7,0.19427315]
[1746033286613,3.0,1767.8,1767.5,10.40857522]
[1746033286769,3.0,1767.8,1767.7,0.19415343]
[1746033286972,3.0,1767.8,1767.5,10.40849538]
[1746033287170,3.0,1767.8,1767.7,0.19415343]
[1746033287372,3.0,1767.8,1767.5,10.40849538]
[1746033287673,3.0,1767.8,1767.5,16.06601034]
[1746033287873,3.0,1767.8,1767.6,5.85153991]
[1746033288105,3.0,1767.8,1767.6,0.19415343]
[1746033288299,9.46535332,1767.8,1767.6,0.19415343]
[1746033288607,3.8086,1767.8,1767.6,0.19415343]
[1746033290916,9.46546114,1767.8,1767.6,0.19415343]
[1746033291078,3.8086,1767.8,1767.6,0.19415343]
[1746033292218,9.46539638,1767.8,1767.6,0.19415343]
[1746033293009,3.8086,1767.8,1767.6,5.85152112]
[1746033293307,3.8086,1767.8,1767.6,0.19415343]
[1746033294207,3.8086,1767.8,1767.6,11.5087412]
[1746033294411,3.8086,1767.8,1767.6,5.85140397]
[1746033294778,3.0,1767.8,1767.6,5.85140397]
[1746033299398,3.0,1767.8,1767.7,4.746]
[1746033299709,3.0,1767.8,1767.7,4.92857516]
[1746033301520,6.36588731,1768.0,1767.8,5.65661848]
[1746033301716,6.36588731,1768.0,1767.9,0.1799356]
[1746033302028,6.36588731,1768.0,1767.8,5.65668497]
[1746033302329,10.20982807,1768.3,1767.9,5.83636413]
[1746033302626,3.36588731,1768.1,1767.9,5.83636413]
[1746033302910,3.36588731,1768.1,1767.9,0.1799356]
[1746033302911,6.42200859,1768.0,1767.9,0.1799356]
[1746033303507,3.0,1767.9,1767.7,4.746]
[1746033303710,6.36588731,1767.9,1767.7,4.746]
[1746033304071,3.0,1767.9,1767.7,4.746]
[1746033304396,3.0,1767.9,1767.8,5.6567485]
[1746033304594,3.0,1767.9,1767.8,6.4197485]
[1746033305511,3.0,1768.0,1767.8,6.4197485]
[1746033305809,3.36588731,1767.9,1767.7,4.746]
[1746033306183,8.65634949,1768.0,1767.7,4.746]
[1746033306381,3.0,1768.0,1767.7,10.40291948]
[1746033306575,3.0,1768.0,1767.7,10.40286172]
[1746033306780,3.0,1768.0,1767.8,5.65660349]
[1746033307004,3.0,1768.0,1767.7,10.40286172]
[1746033307711,3.0,1768.0,1767.7,16.0597158]
[1746033308615,3.0,1768.0,1767.7,10.40285408]
[1746033308792,3.0,1768.0,1767.8,5.65671275]
[1746033309398,3.0,1768.0,1767.7,10.40285408]
[1746033309792,3.36588731,1767.9,1767.7,4.746]
[1746033309993,3.36588731,1767.9,1767.8,0.15530093]
[1746033310299,3.0,1768.0,1767.8,0.15530093]
[1746033310506,3.36588731,1768.1,1767.8,5.81191955]
[1746033310682,3.0,1768.1,1767.9,5.65629035]
[1746033310883,3.0,1768.1,1768.0,0.15553981]
[1746033311381,3.31822056,1768.1,1768.0,0.15553981]
[1746033311993,3.31822056,1768.1,1767.8,6.48917246]
[1746033312195,3.31822056,1768.1,1768.0,0.15553981]
[1746033312394,3.0,1768.1,1767.8,12.14569225]
[1746033312597,3.0,1768.1,1768.0,0.15553981]
[1746033312812,3.0,1768.1,1767.9,5.65625418]
[1746033313017,3.0,1768.1,1768.0,0.15553981]
[1746033313816,3.31810002,1768.1,1768.0,0.15553981]
[1746033314135,3.31810002,1768.1,1767.8,12.14564431]
[1746033314420,0.31810002,1768.0,1767.9,0.15553981]
[1746033314924,0.31810002,1768.0,1767.9,5.81196834]
[1746033315923,0.31810002,1768.0,1767.9,5.86853027]
[1746033316090,0.31810002,1768.0,1767.9,6.69703027]
[1746033316284,0.31810002,1768.0,1767.9,6.64046834]
[1746033316489,0.31810002,1768.0,1767.9,7.71759075]
[1746033316709,0.31810002,1768.0,1767.9,6.69702212]
[1746033316908,0.31810002,1768.0,1767.9,8.69702212]
[1746033317126,0.31810002,1768.0,1767.9,8.64046834]
[1746033317429,0.31810002,1768.0,1767.9,8.69702049]
[1746033317732,5.65498358,1768.4,1768.1,5.65573188]
[1746033317934,5.65498358,1768.4,1768.2,4.89958434]
[1746033318113,8.65462015,1768.5,1768.2,4.89958434]
[1746033318427,5.97263759,1768.4,1768.2,4.89958434]
[1746033318830,9.3385249,1768.4,1768.2,0.15458434]
[1746033319134,9.80554655,1768.3,1768.2,4.745]
[1746033319301,9.80554655,1768.3,1768.2,4.89958434]
[1746033320440,4.15039754,1768.3,1768.2,4.89958434]
[1746033320755,9.80554655,1768.3,1768.2,4.89958434]
[1746033321148,3.31779754,1768.3,1768.2,4.89958434]
[1746033321549,8.97294655,1768.3,1768.2,4.89958434]
[1746033323816,10.84902876,1768.3,1768.2,4.89958434]
[1746033324846,11.73922568,1768.3,1768.2,0.15458434]
[1746033325028,11.66852876,1768.3,1768.2,0.15458434]
[1746033325224,9.47528869,1768.1,1768.0,4.744]
[1746033325425,12.841176,1768.1,1768.0,4.744]
[1746033325618,7.18538731,1768.1,1768.0,4.744]
[1746033325819,12.841176,1768.1,1768.0,4.744]
[1746033326018,7.50318485,1768.1,1768.0,4.744]
[1746033326220,3.31779754,1768.1,1768.0,4.744]
[1746033329752,8.97358623,1768.1,1768.0,4.744]
[1746033329940,3.31779754,1768.1,1768.0,4.744]
[1746033333367,3.31779754,1768.1,1768.0,11.15180859]
[1746033333567,0.31779754,1768.1,1768.0,11.15180859]
[1746033335965,0.31779754,1768.1,1768.0,13.15180859]
[1746033336275,0.31779754,1768.5,1768.3,12.06755294]
[1746033336443,0.31779754,1768.5,1768.4,4.745]
[1746033337048,0.31779754,1768.5,1768.4,10.39982922]
[1746033337666,0.31779754,1768.5,1768.4,11.20242922]
[1746033338348,3.8003,1768.9,1768.6,5.65413199]
[1746033338742,9.45363235,1768.9,1768.5,5.65448894]
[1746033338957,0.31780367,1768.8,1768.5,5.65448894]
[1746033339869,9.45363235,1768.9,1768.5,5.65448894]
[1746033339870,0.31780367,1768.7,1768.6,0.14124527]
[1746033340964,5.65477859,1768.5,1768.0,6.821]
[1746033341183,6.42806279,1768.3,1768.1,4.744]
[1746033341387,0.7729,1768.3,1768.1,4.744]
[1746033341550,0.31780367,1768.2,1768.1,4.744]
[1746033341735,0.31780367,1768.2,1768.0,5.65601037]
[1746033341936,0.31780367,1768.2,1768.1,4.744]
[1746033342132,0.31780367,1768.2,1768.1,11.21734472]
[1746033342347,0.31780367,1768.2,1768.1,11.16078869]
[1746033344289,9.79299396,1768.6,1768.2,5.65526944]
[1746033344443,5.65472099,1768.5,1768.1,11.16061801]
[1746033344787,9.79299396,1768.6,1768.2,5.65540517]
[1746033344937,0.31751885,1768.5,1768.2,5.65540517]
[1746033345463,0.31751885,1768.5,1768.2,5.65526118]
[1746033345650,0.31751885,1768.4,1768.2,5.65526118]
[1746033346338,0.31751885,1768.3,1768.2,5.65526118]